bitfinex-derivatives/quotes_BTCF0:USTF0_20260106
["timestamp","ask_amount","ask_price","bid_price","bid_amount"]
[1767697846477,0.09068,93802.0,93782.0,0.02839061]
[1767697846678,0.09068,93802.0,93784.0,0.02839061]
[1767697846985,0.09068,93802.0,93781.0,1.5]
[1767697846986,0.09068,93802.0,93798.0,0.010664]
[1767697847179,0.09068,93813.0,93798.0,0.004664]
[1767697847373,0.09068,93813.0,93800.0,0.010664]
[1767697847577,0.09068,93813.0,93797.0,0.010664]
[1767697848784,0.10278274,93813.0,93797.0,0.010664]
[1767697850489,0.20522292,93813.0,93794.0,0.010665]
[1767697850887,0.01059742,93812.0,93794.0,0.010665]
[1767697851183,0.010663,93811.0,93793.0,0.02839061]
[1767697851380,0.1023746,93811.0,93793.0,0.010665]
[1767697851582,0.1023746,93811.0,93792.0,0.11905033]
[1767697852587,0.1023746,93811.0,93798.0,0.010664]
[1767697852784,0.02180972,93819.0,93800.0,0.03905461]
[1767697852984,0.18245718,93820.0,93802.0,0.010664]
[1767697853379,0.010662,93819.0,93801.0,0.02839061]
[1767697853582,0.1936049,93820.0,93801.0,0.03905461]
[1767697853890,0.2042669,93820.0,93801.0,0.02839061]
[1767697854390,0.09068,93820.0,93803.0,0.02839061]
[1767697855290,0.09068,93820.0,93802.0,0.02839061]
[1767697855490,0.010662,93819.0,93802.0,0.02839061]
[1767697855888,0.01083132,93817.0,93798.0,0.02872433]
[1767697856087,0.010663,93815.0,93798.0,0.92288]
[1767697856292,0.010663,93815.0,93799.0,0.09068]
[1767697856495,0.09160785,93816.0,93799.0,0.11940433]
[1767697857194,0.09160785,93816.0,93800.0,0.010664]
[1767697857895,0.09160785,93816.0,93799.0,0.11940433]
[1767697858284,0.09160785,93816.0,93800.0,0.010664]
[1767697858484,0.01083132,93820.0,93800.0,0.010664]
[1767697858685,0.01083132,93820.0,93800.0,0.03938833]
[1767697859086,0.010662,93823.0,93805.0,0.03938833]
[1767697859590,0.010662,93823.0,93805.0,0.02872433]
[1767697859795,0.010662,93819.0,93805.0,0.02872433]
[1767697860184,0.01111904,93824.0,93805.0,0.02872433]
[1767697860380,0.010662,93821.0,93805.0,0.02872433]
[1767697860895,0.010662,93819.0,93805.0,0.02872433]
[1767697861190,0.010662,93822.0,93805.0,0.02872433]
[1767697861594,0.010662,93819.0,93805.0,0.02872433]
[1767697861792,0.02800286,93820.0,93801.0,0.01029018]
[1767697861990,0.02800286,93817.0,93802.0,0.09068]
[1767697862495,0.02800286,93822.0,93802.0,0.09068]
[1767697862887,0.010662,93817.0,93802.0,0.09068]
[1767697863394,0.010662,93817.0,93800.0,0.010664]
[1767697863595,0.010662,93817.0,93801.0,0.09068]
[1767697864196,0.010662,93820.0,93802.0,0.04095418]
[1767697864404,0.02800286,93822.0,93802.0,0.03029018]
[1767697864584,0.12183188,93816.0,93801.0,0.09068]
[1767697864788,0.010663,93813.0,93801.0,0.09068]
[1767697864988,0.03866586,93813.0,93801.0,0.09068]
[1767697865284,0.010663,93814.0,93801.0,0.09068]
[1767697866197,0.010663,93814.0,93798.0,0.03029018]
[1767697866393,0.010663,93814.0,93799.0,1.04381018]
[1767697866595,0.010663,93814.0,93799.0,0.95313018]
[1767697866798,0.010663,93814.0,93800.0,0.09068]
[1767697867406,0.010663,93815.0,93800.0,0.12097018]
[1767697868700,0.010663,93813.0,93800.0,0.12097018]
[1767697868900,0.010663,93813.0,93800.0,0.03029018]
[1767697869102,0.010663,93813.0,93801.0,0.09068]
[1767697869295,0.010662,93816.0,93801.0,0.09068]
[1767697869490,0.12183188,93820.0,93800.0,0.95313018]
[1767697869491,0.010663,93814.0,93800.0,0.03029018]
[1767697869697,0.010663,93814.0,93801.0,0.09068]
[1767697870088,0.010664,93803.0,93799.0,0.3184]
[1767697870293,0.010664,93804.0,93797.0,0.09757062]
[1767697870494,0.010664,93807.0,93798.0,0.09068]
[1767697870700,0.010663,93810.0,93798.0,0.09068]
[1767697870897,0.010663,93808.0,93798.0,0.09068]
[1767697871092,0.010663,93810.0,93798.0,0.09068]
[1767697871587,0.010663,93810.0,93783.0,0.09566344]
[1767697871588,0.02800286,93807.0,93793.0,0.09068]
[1767697871795,0.010664,93804.0,93793.0,0.09068]
[1767697871995,0.010664,93804.0,93792.0,0.09068]
[1767697872193,0.010664,93804.0,93787.0,0.03029018]
[1767697872393,0.010663,93807.0,93790.0,0.04095518]
[1767697872691,0.02800286,93811.0,93791.0,0.101345]
[1767697872900,0.010663,93810.0,93791.0,0.101345]
[1767697873100,0.010663,93810.0,93791.0,0.13163518]
[1767697873400,0.010663,93808.0,93792.0,0.03029018]
[1767697874293,0.010663,93808.0,93792.0,0.04095518]
[1767697874490,0.02800286,93811.0,93793.0,0.010665]
[1767697874691,0.010663,93812.0,93795.0,0.010665]
[1767697874998,0.09068,93817.0,93798.0,0.03029018]
[1767697875207,0.101342,93817.0,93801.0,0.010664]
[1767697875398,0.101342,93817.0,93798.0,0.04095418]
[1767697876006,0.12934486,93817.0,93798.0,0.04095418]
[1767697876201,0.010663,93815.0,93798.0,0.03029018]
[1767697876804,0.02800286,93816.0,93798.0,0.03029018]
[1767697877208,0.02800286,93816.0,93800.0,0.010664]
[1767697877403,0.02800286,93816.0,93798.0,0.00495418]
[1767697877599,0.010663,93815.0,93798.0,0.010664]
[1767697878309,0.010663,93813.0,93797.0,0.09757062]
[1767697879006,0.010663,93812.0,93797.0,0.09757062]
[1767697879407,0.010663,93814.0,93797.0,0.09757062]
[1767697879706,0.010663,93814.0,93798.0,0.010664]
[1767697880206,0.03866486,93816.0,93799.0,0.010664]
[1767697880403,0.010663,93814.0,93799.0,0.010664]
[1767697881609,0.02800286,93816.0,93797.0,0.09757062]
[1767697881810,0.03866486,93816.0,93800.0,0.010664]
[1767697882908,0.11868286,93817.0,93800.0,0.010664]
[1767697883106,0.11868286,93817.0,93798.0,0.03029018]
[1767697883411,0.12934486,93817.0,93801.0,0.010664]
[1767697883600,0.09068,93817.0,93804.0,0.03029018]
[1767697884607,0.09068,93817.0,93805.0,0.03029018]
[1767697884806,0.09068,93817.0,93803.0,0.010664]
[1767697884807,0.09068,93817.0,93807.0,0.03029018]
[1767697885116,0.09068,93817.0,93806.0,0.09757062]
[1767697885117,0.010662,93820.0,93806.0,0.09757062]
[1767697885415,0.02800286,93822.0,93800.0,0.10823462]
[1767697885816,0.010663,93815.0,93800.0,0.09757062]
[1767697886609,0.010662,93818.0,93801.0,0.010664]
[1767697886813,0.010662,93816.0,93800.0,0.09757062]
[1767697887115,0.02800286,93820.0,93800.0,0.1278608]
[1767697887322,0.02800286,93820.0,93801.0,0.03029018]
[1767697888316,0.010662,93817.0,93801.0,0.04095418]
[1767697889526,0.02800286,93820.0,93801.0,0.03029018]
[1767697889821,0.010662,93818.0,93802.0,0.010664]
[1767697891216,0.02800286,93820.0,93804.0,0.010664]
[1767697891418,0.101341,93824.0,93807.0,0.010663]
[1767697892610,0.010662,93822.0,93805.0,0.12821066]
[1767697892825,0.010662,93822.0,93805.0,0.11621066]
[1767697893022,0.010662,93823.0,93806.0,0.010664]
[1767697893723,0.010662,93821.0,93805.0,0.09432672]
[1767697893921,0.101342,93824.0,93805.0,0.10499072]
[1767697894124,0.010662,93821.0,93805.0,0.09432672]
[1767697894326,0.010662,93822.0,93805.0,0.09432672]
[1767697894522,0.010662,93819.0,93805.0,0.09432672]
[1767697894723,0.12709905,93823.0,93800.0,0.22649467]
[1767697894917,0.1321187,93820.0,93800.0,0.22649467]
[1767697895117,0.03383469,93820.0,93801.0,0.010664]
[1767697895318,0.03383469,93820.0,93800.0,0.22649467]
[1767697895718,0.010662,93818.0,93800.0,0.23715867]
[1767697896116,0.010662,93816.0,93800.0,0.23715867]
[1767697896421,0.03383469,93820.0,93800.0,0.22649467]
[1767697896630,0.010662,93819.0,93802.0,0.03388394]
[1767697896923,0.12709905,93823.0,93802.0,0.03388394]
[1767697897119,0.010662,93818.0,93802.0,0.04454794]
[1767697897318,0.010662,93817.0,93802.0,0.03388394]
[1767697897515,0.03383469,93814.0,93795.0,0.09432672]
[1767697897727,0.03383469,93814.0,93798.0,0.010664]
[1767697898620,0.010663,93814.0,93799.0,0.010664]
[1767697899016,0.03383469,93817.0,93797.0,0.03388394]
[1767697899017,0.04449669,93817.0,93797.0,0.03388394]
[1767697899227,0.010663,93815.0,93797.0,0.03388394]
[1767697899524,0.010663,93815.0,93799.0,0.03388394]
[1767697899918,0.010663,93815.0,93800.0,0.09828401]
[1767697900120,0.010663,93814.0,93800.0,0.09828401]
[1767697900319,0.12709905,93818.0,93800.0,0.09828401]
[1767697901129,0.010663,93813.0,93800.0,0.09828401]
[1767697901318,0.03383469,93814.0,93796.0,0.19700844]
[1767697901522,0.03383469,93814.0,93800.0,0.09828401]
[1767697902130,0.03383469,93811.0,93796.0,0.010665]
[1767697902433,0.010663,93813.0,93796.0,0.10632844]
[1767697902729,0.010663,93811.0,93796.0,0.10632844]
[1767697903430,0.010663,93811.0,93796.0,0.09566344]
[1767697903625,0.010663,93811.0,93795.0,0.09566344]
[1767697904016,0.03383469,93808.0,93795.0,0.09566344]
[1767697904535,0.03383469,93808.0,93794.0,0.09566344]
[1767697904832,0.03383469,93808.0,93796.0,0.010665]
[1767697905031,0.03383469,93808.0,93794.0,0.09566344]
[1767697905232,0.03383469,93808.0,93793.0,0.10632844]
[1767697905423,0.09326436,93810.0,93793.0,0.10632844]
[1767697906224,0.09068,93812.0,93800.0,0.09828401]
[1767697908129,0.09068,93812.0,93800.0,0.10894801]
[1767697908335,0.09068,93812.0,93801.0,0.12821066]
[1767697908733,0.09068,93812.0,93801.0,0.10921066]
[1767697909035,0.09068,93812.0,93801.0,0.07532672]
[1767697909231,0.09068,93812.0,93800.0,0.09828401]
[1767697910327,0.101343,93812.0,93791.0,0.03388394]
[1767697911127,0.09068,93812.0,93796.0,0.010665]
[1767697913040,0.12451469,93812.0,93796.0,0.010665]
[1767697914144,0.09068,93812.0,93796.0,0.010665]
[1767697914849,0.101343,93812.0,93796.0,0.010665]
[1767697915445,0.09068,93812.0,93798.0,0.010664]
[1767697916344,0.101343,93812.0,93794.0,0.04454894]
[1767697916533,0.12050781,93812.0,93791.0,0.19555203]
[1767697916735,0.12050781,93812.0,93792.0,0.03288031]
[1767697917038,0.12050781,93812.0,93796.0,0.010665]
[1767697918541,0.09068,93812.0,93803.0,0.010664]
[1767697918736,0.09068,93812.0,93808.0,0.010663]
[1767697918937,0.09068,93812.0,93805.0,0.010664]
[1767697919437,0.09068,93812.0,93802.0,0.010664]
[1767697919849,0.12050781,93819.0,93801.0,0.09886005]
[1767697920242,0.12050781,93819.0,93804.0,0.010664]
[1767697920949,0.12050781,93819.0,93801.0,0.09886005]
[1767697920950,0.12050781,93819.0,93806.0,0.010663]
[1767697921148,0.12050781,93819.0,93803.0,0.010664]
[1767697922153,0.03126618,93818.0,93802.0,0.010664]
[1767697922345,0.03126618,93817.0,93802.0,0.010664]
[1767697922753,0.03126618,93817.0,93800.0,0.09828401]
[1767697922938,0.03126618,93817.0,93808.0,0.010663]
[1767697923140,0.03126618,93829.0,93807.0,0.09828401]
[1767697923339,0.09068,93823.0,93819.0,0.09828401]
[1767697923543,0.09068,93826.0,93811.0,0.12846627]
[1767697923744,0.09068,93826.0,93811.0,0.09742246]
[1767697924239,0.09068,93826.0,93811.0,0.08942246]
[1767697924752,0.09068,93826.0,93811.0,0.10008546]
[1767697924955,0.09068,93826.0,93813.0,0.010663]
[1767697925150,0.12194618,93826.0,93813.0,0.010663]
[1767697925351,0.12194618,93826.0,93811.0,0.010663]
[1767697925752,0.12194618,93826.0,93813.0,0.010663]
[1767697926350,0.12194618,93826.0,93815.0,0.010662]
[1767697927148,0.12194618,93826.0,93810.0,0.09828401]
[1767697929052,0.12194618,93826.0,93812.0,0.010663]
[1767697929254,0.12194618,93826.0,93810.0,0.09828401]
[1767697929755,0.09068,93826.0,93816.0,0.09828401]
[1767697930055,0.09068,93830.0,93820.0,0.010662]
[1767697930655,0.09068,93830.0,93819.0,0.09828401]
[1767697931156,0.09068,93830.0,93820.0,0.09828401]
[1767697932042,0.09068,93830.0,93820.0,0.09128401]
[1767697934250,0.09068,93830.0,93820.0,0.10194601]
[1767697934851,0.00213132,93839.0,93826.0,0.09742246]
[1767697935045,0.00213132,93839.0,93827.0,0.03104381]
[1767697935458,0.0333975,93839.0,93823.0,0.010662]
[1767697935759,0.04192618,93838.0,93821.0,0.09742246]
[1767697936053,0.09418557,93837.0,93820.0,0.09828401]
[1767697936254,0.00213132,93839.0,93815.0,0.09064]
[1767697936255,0.03126618,93828.0,93815.0,0.09064]
[1767697936460,0.010661,93827.0,93812.0,0.010663]
[1767697936647,0.04192718,93827.0,93812.0,0.101303]
[1767697937245,0.03126618,93827.0,93812.0,0.09064]
[1767697937558,0.04192718,93827.0,93812.0,0.101303]
[1767697937755,0.010661,93827.0,93814.0,0.010663]
[1767697937955,0.04192718,93830.0,93816.0,0.010662]
[1767697938155,0.010661,93828.0,93813.0,0.010663]
[1767697938362,0.04192718,93828.0,93813.0,0.010663]
[1767697939551,0.010661,93826.0,93813.0,0.010663]
[1767697939758,0.010661,93826.0,93812.0,0.083303]
[1767697939962,0.03126618,93828.0,93813.0,0.010663]
[1767697940156,0.04192718,93828.0,93812.0,0.093966]
[1767697940458,0.04192718,93828.0,93810.0,0.09828401]
[1767697940459,0.010661,93826.0,93811.0,0.010663]
[1767697940853,0.010661,93826.0,93813.0,0.010663]
[1767697941757,0.010661,93826.0,93810.0,0.10894701]
[1767697942261,0.010661,93826.0,93812.0,0.010663]
[1767697942461,0.010661,93826.0,93810.0,0.09828401]
[1767697942664,0.03126618,93828.0,93815.0,0.010662]
[1767697943048,0.010661,93827.0,93814.0,0.010663]
[1767697943265,0.03126618,93828.0,93814.0,0.010663]
[1767697943466,0.04192718,93828.0,93814.0,0.010663]
[1767697945964,0.03126618,93828.0,93814.0,0.010663]
[1767697947168,0.03126618,93828.0,93810.0,0.09828401]
[1767697947371,0.03126618,93828.0,93810.0,0.07028401]
[1767697947556,0.03126618,93828.0,93816.0,0.010662]
[1767697948251,0.03126618,93828.0,93810.0,0.07028401]
[1767697949264,0.03126618,93828.0,93817.0,0.010662]
[1767697949867,0.03126618,93831.0,93812.0,0.12846627]
[1767697950068,0.09064,93833.0,93822.0,0.010662]
[1767697951272,0.09064,93833.0,93820.0,0.10894601]
[1767697951772,0.09064,93833.0,93822.0,0.010662]
[1767697952073,0.09064,93833.0,93826.0,0.010661]
[1767697952473,0.09064,93833.0,93823.0,0.010661]
[1767697952771,0.09064,93833.0,93824.0,0.010661]
[1767697953473,0.09064,93833.0,93820.0,0.09828401]
[1767697953672,0.09064,93833.0,93823.0,0.010662]
[1767697954175,0.12141528,93833.0,93820.0,0.10894601]
[1767697954470,0.12141528,93833.0,93814.0,0.03092841]
[1767697954471,0.03077528,93832.0,93819.0,0.010662]
[1767697955276,0.03077528,93832.0,93813.0,0.08703191]
[1767697955572,0.03077528,93832.0,93819.0,0.010662]
[1767697956074,0.03077528,93831.0,93819.0,0.010662]
[1767697956666,0.04143628,93830.0,93815.0,0.010662]
[1767697956861,0.03077528,93827.0,93807.0,0.010663]
[1767697957069,0.03077528,93827.0,93808.0,0.09064]
[1767697957266,0.01066,93838.0,93819.0,0.12729832]
[1767697957473,0.0329066,93839.0,93827.0,0.010661]
[1767697957864,0.0329066,93839.0,93819.0,0.12729832]
[1767697958064,0.0329066,93839.0,93828.0,0.010661]
[1767697958472,0.0329066,93839.0,93826.0,0.010661]
[1767697958869,0.03077528,93838.0,93819.0,0.09636991]
[1767697959059,0.03077528,93837.0,93823.0,0.010661]
[1767697960160,0.01066,93835.0,93819.0,0.09636991]
[1767697960572,0.03077528,93836.0,93822.0,0.010662]
[1767697960974,0.04143528,93836.0,93822.0,0.010662]
[1767697961371,0.01066,93833.0,93813.0,0.09636991]
[1767697961569,0.03077528,93832.0,93821.0,0.010662]
[1767697961767,0.03077528,93832.0,93818.0,0.010662]
[1767697962076,0.03077528,93831.0,93820.0,0.010662]
[1767697962576,0.03077528,93831.0,93822.0,0.010662]
[1767697962880,0.03077528,93831.0,93813.0,0.09636991]
[1767697963170,0.03077528,93831.0,93813.0,0.08536991]
[1767697963768,0.03077528,93831.0,93814.0,0.010663]
[1767697963967,0.03077528,93831.0,93813.0,0.11629832]
[1767697964374,0.010661,93828.0,93813.0,0.11629832]
[1767697965172,0.09576634,93835.0,93812.0,0.03092841]
[1767697965173,0.03077528,93832.0,93812.0,0.03092841]
[1767697965375,0.010661,93826.0,93815.0,0.12729832]
[1767697965564,0.010661,93829.0,93815.0,0.12729832]
[1767697965766,0.12654162,93835.0,93815.0,0.12729832]
[1767697966066,0.010661,93831.0,93815.0,0.12729832]
[1767697966278,0.010661,93831.0,93815.0,0.13796032]
[1767697966775,0.01066,93833.0,93815.0,0.12729832]
[1767697967378,0.1013,93836.0,93820.0,0.010662]
[1767697967572,0.09064,93836.0,93820.0,0.12729832]
[1767697967875,0.09064,93836.0,93826.0,0.010661]
[1767697968068,0.09064,93835.0,93826.0,0.010661]
[1767697968263,0.09064,93835.0,93823.0,0.12729832]
[1767697968668,0.09064,93835.0,93824.0,0.010661]
[1767697970372,0.09064,93835.0,93823.0,0.12729832]
[1767697970679,0.09064,93835.0,93823.0,0.12129832]
[1767697971679,0.09064,93835.0,93821.0,0.010662]
[1767697971884,0.09064,93835.0,93819.0,0.09636991]
[1767697972072,0.09064,93835.0,93820.0,0.010662]
[1767697972472,0.09064,93835.0,93819.0,0.09636991]
[1767697973279,0.09064,93835.0,93819.0,0.10703191]
[1767697973782,0.09064,93835.0,93819.0,0.09636991]
[1767697973982,0.03077528,93831.0,93813.0,0.18700991]
[1767697974281,0.03077528,93831.0,93814.0,0.010663]
[1767697974579,0.12654162,93834.0,93814.0,0.010663]
[1767697974784,0.03077528,93833.0,93814.0,0.010663]
[1767697975175,0.010661,93832.0,93816.0,0.010662]
[1767697975372,0.010661,93830.0,93816.0,0.010662]
[1767697977884,0.03077528,93833.0,93813.0,0.21793832]
[1767697978074,0.09064,93835.0,93817.0,0.12739485]
[1767697978274,0.09064,93835.0,93823.0,0.010662]
[1767697978583,0.09064,93835.0,93817.0,0.11005685]
[1767697978885,0.09064,93835.0,93822.0,0.010662]
[1767697979086,0.09064,93835.0,93823.0,0.010661]
[1767697980781,0.09064,93835.0,93818.0,0.09765633]
[1767697980985,0.09064,93835.0,93823.0,0.010662]
[1767697981175,0.09064,93835.0,93818.0,0.09765633]
[1767697981377,0.09064,93835.0,93818.0,0.127746]
[1767697981675,0.09064,93835.0,93827.0,0.010661]
[1767697981871,0.09064,93835.0,93824.0,0.010661]
[1767697982077,0.09064,93835.0,93823.0,0.010662]
[1767697982587,0.09064,93835.0,93824.0,0.010661]
[1767697984080,0.09064,93835.0,93826.0,0.010661]
[1767697984483,0.09064,93835.0,93823.0,0.010662]
[1767697984685,0.09064,93835.0,93825.0,0.010661]
[1767697986078,0.09064,93835.0,93818.0,0.127407]
[1767697986279,0.09064,93835.0,93823.0,0.010662]
[1767697987983,0.09064,93835.0,93818.0,0.09731733]
[1767697988185,0.010661,93830.0,93816.0,0.010662]
[1767697988384,0.02795494,93831.0,93818.0,0.010662]
[1767697989190,0.02795494,93831.0,93819.0,0.010662]
[1767697990784,0.03861594,93831.0,93819.0,0.010662]
[1767697990985,0.010661,93830.0,93816.0,0.010662]
[1767697991994,0.02795494,93831.0,93816.0,0.010662]
[1767697992288,0.03861594,93830.0,93817.0,0.010662]
[1767697992487,0.02795494,93830.0,93817.0,0.010662]
[1767697993297,0.02795494,93830.0,93818.0,0.010662]
[1767697993595,0.02795494,93830.0,93812.0,0.09064]
[1767697993790,0.01066,93833.0,93812.0,0.22809171]
[1767697993991,0.01066,93833.0,93813.0,0.09903704]
[1767697994291,0.01066,93833.0,93813.0,0.12912671]
[1767697995199,0.01066,93833.0,93820.0,0.010662]
[1767697995699,0.02795494,93834.0,93820.0,0.010662]
[1767697996302,0.02795494,93834.0,93822.0,0.010662]
[1767697997589,0.01066,93833.0,93821.0,0.010662]
[1767697999092,0.02795494,93834.0,93824.0,0.010661]
[1767697999603,0.09064,93835.0,93819.0,0.010662]
[1767697999796,0.09064,93835.0,93828.0,0.010661]
[1767698001602,0.09064,93835.0,93817.0,0.12912671]
[1767698001795,0.09064,93835.0,93827.0,0.010661]
[1767698004504,0.09064,93835.0,93819.0,0.010662]
[1767698004706,0.11859494,93835.0,93819.0,0.010662]
[1767698006207,0.11859494,93835.0,93827.0,0.010661]
[1767698006506,0.11859494,93835.0,93819.0,0.010662]
[1767698008299,0.02795494,93834.0,93825.0,0.010661]
[1767698008502,0.02795494,93834.0,93819.0,0.010662]
[1767698009201,0.02795494,93834.0,93827.0,0.010661]
[1767698009402,0.09064,93835.0,93818.0,0.010662]
[1767698010609,0.11859494,93835.0,93818.0,0.010662]
[1767698011304,0.11859494,93835.0,93826.0,0.010661]
[1767698012304,0.11859494,93835.0,93825.0,0.010661]
[1767698012600,0.02731125,93834.0,93825.0,0.010661]
[1767698013306,0.09064,93835.0,93829.0,0.010661]
[1767698013508,0.00213132,93839.0,93831.0,0.010661]
[1767698014925,0.02944257,93839.0,93831.0,0.010661]
[1767698015503,0.02944257,93839.0,93830.0,0.010661]
[1767698016603,0.02944257,93839.0,93832.0,0.01066]
[1767698017204,0.02944257,93839.0,93821.0,0.08717308]
[1767698019612,0.00213132,93839.0,93828.0,0.010661]
[1767698021207,0.02944257,93839.0,93828.0,0.010661]
[1767698021710,0.02944257,93839.0,93825.0,0.010661]
[1767698021910,0.02944257,93839.0,93827.0,0.010661]
[1767698023812,0.02944257,93839.0,93822.0,0.010662]
[1767698024608,0.02944257,93839.0,93828.0,0.010661]
[1767698024913,0.02944257,93839.0,93821.0,0.07783408]
[1767698025214,0.02944257,93839.0,93824.0,0.010661]
[1767698025613,0.02944257,93839.0,93831.0,0.010661]
[1767698026212,0.00213132,93839.0,93832.0,0.010661]
[1767698026410,0.00213132,93839.0,93834.0,0.01066]
[1767698026614,3.2e-07,93839.0,93836.0,0.01066]
[1767698027916,3.2e-07,93839.0,93835.0,0.01066]
[1767698029015,3.2e-07,93839.0,93833.0,0.01066]
[1767698029516,3.2e-07,93839.0,93834.0,0.01066]
[1767698030807,3.2e-07,93839.0,93829.0,0.09824105]
[1767698032218,3.2e-07,93839.0,93833.0,0.01066]
[1767698032408,3.2e-07,93839.0,93829.0,0.09390105]
[1767698032920,3.2e-07,93839.0,93834.0,0.01066]
[1767698035720,3.2e-07,93839.0,93829.0,0.09824105]
[1767698037122,3.2e-07,93839.0,93835.0,0.01066]
[1767698038519,3.2e-07,93839.0,93836.0,0.01066]
[1767698040230,3.2e-07,93839.0,93829.0,0.09824105]
[1767698041031,3.2e-07,93839.0,93827.0,0.12224667]
[1767698041233,3.2e-07,93839.0,93834.0,0.01066]
[1767698042032,3.2e-07,93839.0,93829.0,0.10890205]
[1767698042233,3.2e-07,93839.0,93829.0,0.10390205]
[1767698042933,3.2e-07,93839.0,93835.0,0.01066]
[1767698043133,3.2e-07,93839.0,93829.0,0.10890205]
[1767698043534,3.2e-07,93839.0,93835.0,0.01066]
[1767698045448,3.2e-07,93839.0,93829.0,0.09824105]
[1767698045747,3.2e-07,93839.0,93829.0,0.12216731]
[1767698046247,3.2e-07,93839.0,93836.0,0.01066]
[1767698047849,3.2e-07,93839.0,93829.0,0.12018683]
[1767698048049,3.2e-07,93839.0,93829.0,0.21842788]
[1767698048249,3.2e-07,93839.0,93835.0,0.01066]
[1767698049356,3.2e-07,93839.0,93832.0,0.01066]
[1767698049549,3.2e-07,93839.0,93829.0,0.21842788]
[1767698049750,3.2e-07,93839.0,93834.0,0.01066]
[1767698050147,3.2e-07,93839.0,93830.0,0.12018683]
[1767698050348,3.2e-07,93839.0,93834.0,0.01066]
[1767698050545,3.2e-07,93839.0,93830.0,0.12018683]
[1767698050847,3.2e-07,93839.0,93833.0,0.01066]
[1767698051047,0.09064,93846.0,93834.0,0.01066]
[1767698052348,0.101299,93846.0,93834.0,0.01066]
[1767698052843,0.09064,93846.0,93836.0,0.01066]
[1767698053048,0.09064,93846.0,93834.0,0.12018683]
[1767698053248,0.09064,93846.0,93835.0,0.02392626]
[1767698054143,0.09064,93846.0,93834.0,0.09626057]
[1767698054549,0.09064,93846.0,93840.0,0.01066]
[1767698055248,0.09064,93846.0,93829.0,0.010661]
[1767698055249,0.09064,93849.0,93836.0,0.12018683]
[1767698055638,0.010658,93858.0,93840.0,0.09626057]
[1767698055840,0.09064,93859.0,93845.0,0.010659]
[1767698056045,0.09064,93859.0,93847.0,0.010659]
[1767698056250,0.09064,93859.0,93841.0,0.09626057]
[1767698057446,0.09064,93859.0,93849.0,0.09824105]
[1767698057646,0.09064,93866.0,93855.0,0.010658]
[1767698058148,0.00213064,93869.0,93856.0,0.21842788]
[1767698058345,0.00213064,93869.0,93859.0,0.010657]
[1767698058542,0.00213064,93869.0,93856.0,0.10691857]
[1767698058745,0.010657,93868.0,93856.0,0.09626057]
[1767698059448,0.010657,93866.0,93856.0,0.09626057]
[1767698059655,0.010657,93864.0,93856.0,0.09626057]
[1767698060040,0.02467166,93865.0,93846.0,0.09626057]
[1767698060244,0.03532966,93855.0,93836.0,0.02392626]
[1767698060553,0.010658,93853.0,93839.0,0.01066]
[1767698060745,0.010658,93851.0,93838.0,0.01066]
[1767698061145,0.010658,93851.0,93836.0,0.13084683]
[1767698061344,0.010658,93851.0,93836.0,0.20494561]
[1767698063246,0.010658,93851.0,93837.0,0.01066]
[1767698063444,0.010658,93851.0,93836.0,0.19560561]
[1767698064057,0.010659,93849.0,93836.0,0.19560561]
[1767698064554,0.010659,93850.0,93837.0,0.01066]
[1767698065453,0.09824105,93850.0,93836.0,0.08475878]
[1767698065751,0.010659,93846.0,93830.0,0.19450162]
[1767698065955,0.010659,93846.0,93831.0,0.02392626]
[1767698066148,0.010659,93846.0,93831.0,0.12018683]
[1767698066350,0.010659,93846.0,93832.0,0.010661]
[1767698066543,0.13357171,93850.0,93834.0,0.01066]
[1767698066746,0.010659,93848.0,93834.0,0.01066]
[1767698069255,0.09824105,93850.0,93832.0,0.02392626]
[1767698069455,0.09824105,93850.0,93836.0,0.01066]
[1767698070259,0.09824105,93850.0,93838.0,0.01066]
[1767698071057,0.09824105,93850.0,93834.0,0.02507381]
[1767698071754,0.09824105,93850.0,93838.0,0.01066]
[1767698072657,0.010658,93852.0,93838.0,0.01066]
[1767698072859,0.09824105,93850.0,93838.0,0.01066]
[1767698073247,0.09824105,93850.0,93833.0,0.08792057]
[1767698073452,0.09824105,93850.0,93838.0,0.01066]
[1767698073659,0.02547444,93847.0,93830.0,0.08402417]
[1767698073958,0.02547444,93846.0,93837.0,0.01066]
[1767698074144,0.02547444,93846.0,93827.0,0.010661]
[1767698074345,0.02547444,93846.0,93838.0,0.01066]
[1767698074659,0.02547444,93846.0,93827.0,0.08708811]
[1767698074861,0.02547444,93846.0,93828.0,0.010661]
[1767698075644,0.02547444,93846.0,93836.0,0.01066]
[1767698075845,0.02547444,93846.0,93828.0,0.010661]
[1767698076052,0.02547444,93846.0,93837.0,0.01066]
[1767698076254,0.02547444,93846.0,93828.0,0.010661]
[1767698076961,0.02547444,93846.0,93838.0,0.01066]
[1767698077156,0.02547444,93846.0,93828.0,0.010661]
[1767698077861,0.02547444,93846.0,93838.0,0.01066]
[1767698078062,0.02547444,93846.0,93828.0,0.010661]
[1767698078562,0.02547444,93846.0,93838.0,0.01066]
[1767698078857,0.02547444,93846.0,93828.0,0.02507381]
[1767698079061,0.11611444,93849.0,93839.0,0.01066]
[1767698079755,0.11611444,93849.0,93841.0,0.01066]
[1767698079954,0.11611444,93849.0,93839.0,0.01066]
[1767698080357,0.11611444,93849.0,93829.0,0.12255661]
[1767698080565,0.11611444,93849.0,93841.0,0.01066]
[1767698081065,0.09064,93849.0,93832.0,0.01066]
[1767698081564,0.02547444,93848.0,93832.0,0.01066]
[1767698082560,0.02547444,93848.0,93838.0,0.01066]
[1767698082766,0.02547444,93848.0,93829.0,0.02507381]
[1767698082767,0.02547444,93848.0,93840.0,0.01066]
[1767698083066,0.02547444,93848.0,93829.0,0.02507381]
[1767698083364,0.02547444,93848.0,93831.0,0.010661]
[1767698083555,0.09064,93849.0,93831.0,0.010661]
[1767698083752,0.11611444,93849.0,93831.0,0.010661]
[1767698085257,0.11611444,93849.0,93840.0,0.01066]
[1767698085458,0.11611444,93849.0,93837.0,0.01066]
[1767698085763,0.11611444,93849.0,93831.0,0.010661]
[1767698085764,0.02547444,93848.0,93829.0,0.12255661]
[1767698085968,0.02547444,93848.0,93838.0,0.01066]
[1767698086179,0.02547444,93848.0,93829.0,0.12255661]
[1767698086558,0.02547444,93848.0,93829.0,0.09855661]
[1767698086758,0.02547444,93848.0,93838.0,0.01066]